[Event "Early-Titled-Tuesday-Blitz-May-07-2024"]
[Site "Chess.com"]
[Date "2024.05.07"]
[Round "9"]
[White "GothamChess"]
[Black "slorovel"]
[Result "1/2-1/2"]
[WhiteElo "2697"]
[BlackElo "2528"]
[TimeControl "180+1"]
[EndTime "9:53:04 PDT"]
[Termination "Game drawn by repetition"]

1. a4 {[%clk 0:02:59.7]} 1... e5 {[%clk 0:02:55.6]} 2. Ra3 {[%clk 0:02:59.9]}
2... Bxa3 {[%clk 0:02:49.8]} 3. Nxa3 {[%clk 0:03:00.2]} 3... d5 {[%clk
0:02:45.9]} 4. b3 {[%clk 0:03:00.6]} 4... Nf6 {[%clk 0:02:45.4]} 5. Bb2 {[%clk
0:03:01.3]} 5... Nc6 {[%clk 0:02:43.9]} 6. g3 {[%clk 0:03:01.9]} 6... O-O {[%clk
0:02:43.6]} 7. Bg2 {[%clk 0:03:02.6]} 7... e4 {[%clk 0:02:38.3]} 8. e3 {[%clk
0:03:01.8]} 8... Bg4 {[%clk 0:02:35.9]} 9. Ne2 {[%clk 0:03:01.8]} 9... Qe7
{[%clk 0:02:31]} 10. h3 {[%clk 0:02:59]} 10... Bd7 {[%clk 0:02:22.8]} 11. O-O
{[%clk 0:02:57.3]} 11... Ne5 {[%clk 0:02:21]} 12. Kh1 {[%clk 0:02:51.2]} 12...
c6 {[%clk 0:02:18.9]} 13. Ng1 {[%clk 0:02:45.2]} 13... Rfe8 {[%clk 0:02:12.1]}
14. Qa1 {[%clk 0:02:43.5]} 14... a6 {[%clk 0:02:09]} 15. Ne2 {[%clk 0:02:40.9]}
15... Ng6 {[%clk 0:01:59.7]} 16. Nf4 {[%clk 0:02:29.9]} 16... Nxf4 {[%clk
0:01:58.6]} 17. gxf4 {[%clk 0:02:29.8]} 17... Bf5 {[%clk 0:01:57.4]} 18. Kh2
{[%clk 0:02:27.8]} 18... Qe6 {[%clk 0:01:48.1]} 19. Rg1 {[%clk 0:02:27.2]} 19...
Kh8 {[%clk 0:01:47.3]} 20. Bf1 {[%clk 0:02:26.5]} 20... Rg8 {[%clk 0:01:44.9]}
21. a5 {[%clk 0:02:21.5]} 21... c5 {[%clk 0:01:41.5]} 22. Be5 {[%clk 0:02:18.5]}
22... Rac8 {[%clk 0:01:38.5]} 23. c4 {[%clk 0:02:16.7]} 23... Ne8 {[%clk
0:01:20.7]} 24. cxd5 {[%clk 0:02:10]} 24... Qh6 {[%clk 0:01:13.7]} 25. Nc4
{[%clk 0:02:06.6]} 25... Rd8 {[%clk 0:01:04.9]} 26. Nb6 {[%clk 0:01:58.6]} 26...
f6 {[%clk 0:00:56.1]} 27. Bc3 {[%clk 0:01:56.8]} 27... Nc7 {[%clk 0:00:53.3]}
28. Qa3 {[%clk 0:01:46.4]} 28... Nxd5 {[%clk 0:00:51.1]} 29. Qxc5 {[%clk
0:01:45.1]} 29... Nxc3 {[%clk 0:00:36.4]} 30. Qxc3 {[%clk 0:01:40.4]} 30... Qh4
{[%clk 0:00:33.2]} 31. Rg3 {[%clk 0:01:39.9]} 31... Qh5 {[%clk 0:00:28.5]} 32.
Nc4 {[%clk 0:01:35.9]} 32... Qd1 {[%clk 0:00:25.9]} 33. Bg2 {[%clk 0:01:31.8]}
33... Qe1 {[%clk 0:00:23.7]} 34. Qb4 {[%clk 0:01:20.9]} 34... Qxf2 {[%clk
0:00:22.3]} 35. Qxb7 {[%clk 0:01:20.8]} 35... h5 {[%clk 0:00:17.6]} 36. Qf7
{[%clk 0:01:07.7]} 36... g6 {[%clk 0:00:11.5]} 37. Qxf6+ {[%clk 0:01:06.4]}
37... Kh7 {[%clk 0:00:11.4]} 38. Qe7+ {[%clk 0:00:51.9]} 38... Kh6 {[%clk
0:00:10.4]} 39. Ne5 {[%clk 0:00:47.5]} 39... Rdf8 {[%clk 0:00:07.8]} 40. Nf7+
{[%clk 0:00:34.5]} 40... Rxf7 {[%clk 0:00:07.5]} 41. Qxf7 {[%clk 0:00:35.2]}
41... h4 {[%clk 0:00:05.2]} 42. Rg5 {[%clk 0:00:30.4]} 42... Rd8 {[%clk
0:00:05.1]} 43. Qf6 {[%clk 0:00:25.5]} 43... Rc8 {[%clk 0:00:04.6]} 44. Qe5
{[%clk 0:00:14]} 44... Kh7 {[%clk 0:00:04.3]} 45. Qe7+ {[%clk 0:00:11.5]} 45...
Kh6 {[%clk 0:00:04]} 46. Qe5 {[%clk 0:00:12]} 46... Kh7 {[%clk 0:00:04.3]} 47.
b4 {[%clk 0:00:12.7]} 47... Rc1 {[%clk 0:00:02.9]} 48. Qe7+ {[%clk 0:00:05]}
48... Kh6 {[%clk 0:00:03.1]} 49. Qf8+ {[%clk 0:00:04.5]} 49... Kh7 {[%clk
0:00:03.4]} 50. Qf7+ {[%clk 0:00:03.3]} 50... Kh8 {[%clk 0:00:03.7]} 51. Qf8+
{[%clk 0:00:02.1]} 51... Kh7 {[%clk 0:00:04.1]} 52. Qf7+ {[%clk 0:00:02.2]}
52... Kh8 {[%clk 0:00:04.6]} 53. Qf6+ {[%clk 0:00:02.2]} 53... Kh7 {[%clk
0:00:03.6]} 54. Qf7+ {[%clk 0:00:01.9]} 1/2-1/2

[Event "Early-Titled-Tuesday-Blitz-May-07-2024"]
[Site "Chess.com"]
[Date "2024.05.07"]
[Round "9"]
[White "Iball95"]
[Black "Mischuk_D"]
[Result "1/2-1/2"]
[WhiteElo "2909"]
[BlackElo "2810"]
[TimeControl "180+1"]
[EndTime "9:53:05 PDT"]
[Termination "Game drawn - insufficient material"]

1. e4 {[%clk 0:02:59.8]} 1... e6 {[%clk 0:02:59.3]} 2. d4 {[%clk 0:03:00.3]}
2... d5 {[%clk 0:02:59.4]} 3. Nc3 {[%clk 0:03:01.2]} 3... Bb4 {[%clk 0:02:58.8]}
4. exd5 {[%clk 0:03:01.7]} 4... exd5 {[%clk 0:02:58.3]} 5. Bd3 {[%clk
0:03:02.4]} 5... Nf6 {[%clk 0:02:56.4]} 6. Nf3 {[%clk 0:03:02.4]} 6... O-O
{[%clk 0:02:55.9]} 7. O-O {[%clk 0:03:01.4]} 7... Bg4 {[%clk 0:02:53]} 8. h3
{[%clk 0:03:01.6]} 8... Bh5 {[%clk 0:02:52.7]} 9. Bg5 {[%clk 0:03:00.6]} 9... c6
{[%clk 0:02:51]} 10. g4 {[%clk 0:02:58.5]} 10... Bg6 {[%clk 0:02:50.8]} 11. Ne5
{[%clk 0:02:59.1]} 11... Bxd3 {[%clk 0:02:45.2]} 12. Qxd3 {[%clk 0:03:00]} 12...
Be7 {[%clk 0:02:45.5]} 13. Rae1 {[%clk 0:02:58.8]} 13... h6 {[%clk 0:02:35.2]}
14. Bh4 {[%clk 0:02:58.1]} 14... Nbd7 {[%clk 0:02:27.7]} 15. Re3 {[%clk
0:02:55]} 15... Nxe5 {[%clk 0:02:26.5]} 16. Rxe5 {[%clk 0:02:35.4]} 16... Bd6
{[%clk 0:02:22.1]} 17. Re2 {[%clk 0:02:33]} 17... Bf4 {[%clk 0:02:09.9]} 18.
Rfe1 {[%clk 0:02:28.5]} 18... Qd6 {[%clk 0:02:05.4]} 19. Bxf6 {[%clk 0:02:17.3]}
19... Qxf6 {[%clk 0:02:04.9]} 20. Re7 {[%clk 0:02:13.7]} 20... Rab8 {[%clk
0:02:03]} 21. Kg2 {[%clk 0:02:07]} 21... Bd6 {[%clk 0:02:02]} 22. Rd7 {[%clk
0:02:03]} 22... Rfd8 {[%clk 0:02:01.7]} 23. Rxd8+ {[%clk 0:02:01.5]} 23... Rxd8
{[%clk 0:02:02.6]} 24. Nd1 {[%clk 0:01:58.3]} 24... Qf4 {[%clk 0:01:59.4]} 25.
Rh1 {[%clk 0:01:57.4]} 25... Re8 {[%clk 0:01:58.5]} 26. c3 {[%clk 0:01:57.2]}
26... g6 {[%clk 0:01:49.9]} 27. Ne3 {[%clk 0:01:50.2]} 27... h5 {[%clk
0:01:47.5]} 28. Qd1 {[%clk 0:01:47.7]} 28... h4 {[%clk 0:01:38.5]} 29. Qf3
{[%clk 0:01:47.9]} 29... Qg5 {[%clk 0:01:35.9]} 30. Re1 {[%clk 0:01:34.8]} 30...
Re4 {[%clk 0:01:32.1]} 31. Nc2 {[%clk 0:01:23.7]} 31... f5 {[%clk 0:01:32.3]}
32. Rxe4 {[%clk 0:01:21]} 32... dxe4 {[%clk 0:01:22.7]} 33. Qe3 {[%clk
0:01:21.2]} 33... Bf4 {[%clk 0:01:23]} 34. Qe2 {[%clk 0:01:21.6]} 34... Bc1
{[%clk 0:01:22.5]} 35. Ne1 {[%clk 0:00:59.3]} 35... Kg7 {[%clk 0:01:18.9]} 36.
c4 {[%clk 0:00:46.8]} 36... Qd2 {[%clk 0:01:10.6]} 37. Qxd2 {[%clk 0:00:43.5]}
37... Bxd2 {[%clk 0:01:11.5]} 38. Nc2 {[%clk 0:00:44.1]} 38... Kf6 {[%clk
0:01:10.8]} 39. f3 {[%clk 0:00:41.6]} 39... Kg5 {[%clk 0:01:07.7]} 40. fxe4
{[%clk 0:00:41]} 40... fxg4 {[%clk 0:01:01.3]} 41. d5 {[%clk 0:00:39.5]} 41...
Bf4 {[%clk 0:00:58]} 42. Nd4 {[%clk 0:00:36.5]} 42... Be5 {[%clk 0:00:57.6]} 43.
dxc6 {[%clk 0:00:31.7]} 43... bxc6 {[%clk 0:00:55.7]} 44. Nxc6 {[%clk
0:00:32.6]} 44... Bxb2 {[%clk 0:00:50.2]} 45. Nxa7 {[%clk 0:00:31.9]} 45...
gxh3+ {[%clk 0:00:48.6]} 46. Kxh3 {[%clk 0:00:32.8]} 46... Kh5 {[%clk
0:00:49.3]} 47. c5 {[%clk 0:00:31.4]} 47... g5 {[%clk 0:00:49.9]} 48. c6 {[%clk
0:00:29.9]} 48... g4+ {[%clk 0:00:50.3]} 49. Kg2 {[%clk 0:00:30.6]} 49... h3+
{[%clk 0:00:50.4]} 50. Kf1 {[%clk 0:00:27.4]} 50... Be5 {[%clk 0:00:49]} 51. Nb5
{[%clk 0:00:27.4]} 51... g3 {[%clk 0:00:49.6]} 52. c7 {[%clk 0:00:26.8]} 52...
g2+ {[%clk 0:00:49.6]} 53. Kf2 {[%clk 0:00:27.2]} 53... Bh2 {[%clk 0:00:47.4]}
54. c8=Q {[%clk 0:00:24.1]} 54... g1=Q+ {[%clk 0:00:47.6]} 55. Ke2 {[%clk
0:00:22.3]} 55... Qg4+ {[%clk 0:00:44.6]} 56. Qxg4+ {[%clk 0:00:20.1]} 56...
Kxg4 {[%clk 0:00:45.5]} 57. Nd4 {[%clk 0:00:18.3]} 57... Bb8 {[%clk 0:00:38.2]}
58. Nf3 {[%clk 0:00:16.9]} 58... Kf4 {[%clk 0:00:37.9]} 59. a4 {[%clk 0:00:15]}
59... Kxe4 {[%clk 0:00:37.4]} 60. Ng5+ {[%clk 0:00:15.6]} 60... Kd4 {[%clk
0:00:37.3]} 61. Nxh3 {[%clk 0:00:16.5]} 61... Kc4 {[%clk 0:00:38]} 62. a5 {[%clk
0:00:16.2]} 62... Kb5 {[%clk 0:00:38.2]} 63. a6 {[%clk 0:00:17.1]} 63... Kxa6
{[%clk 0:00:38.5]} 1/2-1/2

[Event "Early-Titled-Tuesday-Blitz-May-07-2024"]
[Site "Chess.com"]
[Date "2024.05.07"]
[Round "9"]
[White "PeshkaCh"]
[Black "JeFumeDesClopes"]
[Result "1-0"]
[WhiteElo "2890"]
[BlackElo "2719"]
[TimeControl "180+1"]
[EndTime "9:53:09 PDT"]
[Termination "PeshkaCh won by resignation"]

1. Nf3 {[%clk 0:03:00.9]} 1... g6 {[%clk 0:02:59.8]} 2. e4 {[%clk 0:02:58]} 2...
Bg7 {[%clk 0:03:00.2]} 3. d4 {[%clk 0:02:57.9]} 3... d6 {[%clk 0:03:00.6]} 4.
Bd3 {[%clk 0:02:57.9]} 4... Nf6 {[%clk 0:02:59.8]} 5. O-O {[%clk 0:02:57.3]}
5... O-O {[%clk 0:03:00.2]} 6. c3 {[%clk 0:02:58]} 6... Nc6 {[%clk 0:02:59.6]}
7. Re1 {[%clk 0:02:57.9]} 7... e5 {[%clk 0:02:58.8]} 8. Nbd2 {[%clk 0:02:58.3]}
8... Nh5 {[%clk 0:02:53.8]} 9. dxe5 {[%clk 0:02:49.6]} 9... Nxe5 {[%clk
0:02:46.6]} 10. Nxe5 {[%clk 0:02:49.5]} 10... dxe5 {[%clk 0:02:41.4]} 11. Nf3
{[%clk 0:02:49.4]} 11... b6 {[%clk 0:02:32.8]} 12. b3 {[%clk 0:02:40.4]} 12...
Bb7 {[%clk 0:02:29.6]} 13. g3 {[%clk 0:02:38.5]} 13... Qe7 {[%clk 0:02:26.2]}
14. a4 {[%clk 0:02:07.2]} 14... Rfd8 {[%clk 0:02:11.8]} 15. Qc2 {[%clk
0:02:05.9]} 15... a5 {[%clk 0:02:08.1]} 16. Bf1 {[%clk 0:01:58.1]} 16... Nf6
{[%clk 0:01:54.3]} 17. Bg2 {[%clk 0:01:49.1]} 17... Ne8 {[%clk 0:01:49]} 18. Ba3
{[%clk 0:01:45.7]} 18... Nd6 {[%clk 0:01:48.8]} 19. Nd2 {[%clk 0:01:45.2]} 19...
Bf8 {[%clk 0:01:47.2]} 20. Nc4 {[%clk 0:01:43.9]} 20... Qe6 {[%clk 0:01:45.2]}
21. Ne3 {[%clk 0:01:42]} 21... Kg7 {[%clk 0:01:38]} 22. Rad1 {[%clk 0:01:41.8]}
22... Ne8 {[%clk 0:01:29.5]} 23. Bb2 {[%clk 0:01:26.8]} 23... Bc5 {[%clk
0:01:29.4]} 24. h4 {[%clk 0:00:47.9]} 24... h5 {[%clk 0:01:12.7]} 25. Nc4 {[%clk
0:00:45]} 25... Bc6 {[%clk 0:01:05.9]} 26. Kh2 {[%clk 0:00:44.1]} 26... Bxa4
{[%clk 0:01:00.6]} 27. Bf1 {[%clk 0:00:32.8]} 27... Bc6 {[%clk 0:00:55]} 28. Bh3
{[%clk 0:00:32.3]} 28... Qe7 {[%clk 0:00:50.6]} 29. b4 {[%clk 0:00:16.8]} 29...
axb4 {[%clk 0:00:45.7]} 30. cxb4 {[%clk 0:00:17.7]} 30... Bd4 {[%clk 0:00:42.1]}
31. Nxe5 {[%clk 0:00:14.7]} 31... Ba4 {[%clk 0:00:24.5]} 32. Rxd4 {[%clk
0:00:15.1]} 32... Rxd4 {[%clk 0:00:16.8]} 33. Bxd4 {[%clk 0:00:09]} 33... Bxc2
{[%clk 0:00:15.8]} 34. Nc6+ {[%clk 0:00:09.1]} 34... Qf6 {[%clk 0:00:12.3]} 35.
Bxf6+ {[%clk 0:00:09.7]} 35... Nxf6 {[%clk 0:00:12.9]} 36. e5 {[%clk 0:00:10.3]}
36... Nd5 {[%clk 0:00:13.1]} 37. Bg2 {[%clk 0:00:10.3]} 37... Bb3 {[%clk
0:00:09.5]} 38. Nd4 {[%clk 0:00:07.3]} 38... Bc4 {[%clk 0:00:09]} 39. Rc1 {[%clk
0:00:07.8]} 39... Ba2 {[%clk 0:00:08]} 40. Ra1 {[%clk 0:00:03.9]} 40... c6
{[%clk 0:00:03.1]} 41. Nxc6 {[%clk 0:00:03.3]} 41... Rc8 {[%clk 0:00:03.4]} 42.
b5 {[%clk 0:00:02.5]} 42... Bc4 {[%clk 0:00:02.7]} 43. Ra7 {[%clk 0:00:03.2]}
43... Kf8 {[%clk 0:00:02.2]} 44. e6 {[%clk 0:00:02.9]} 44... fxe6 {[%clk
0:00:02.2]} 45. Nd4 {[%clk 0:00:03.5]} 45... Nc7 {[%clk 0:00:01.8]} 46. Bb7
{[%clk 0:00:02.7]} 46... Rd8 {[%clk 0:00:01.2]} 47. Nf3 {[%clk 0:00:02.4]} 47...
Nxb5 {[%clk 0:00:00.6]} 48. Ra1 {[%clk 0:00:02.6]} 48... Rd7 {[%clk 0:00:01.5]}
49. Bc6 {[%clk 0:00:02.8]} 49... Ke7 {[%clk 0:00:02.4]} 50. Bxd7 {[%clk
0:00:02.9]} 50... Kxd7 {[%clk 0:00:03.3]} 51. Ne5+ {[%clk 0:00:03.6]} 51... Kd6
{[%clk 0:00:03.5]} 52. Nxc4+ {[%clk 0:00:04.5]} 52... Kc5 {[%clk 0:00:03.5]} 53.
Rc1 {[%clk 0:00:05.2]} 53... Nc3 {[%clk 0:00:03.5]} 1-0

[Event "Early-Titled-Tuesday-Blitz-May-07-2024"]
[Site "Chess.com"]
[Date "2024.05.07"]
[Round "9"]
[White "Barbix1"]
[Black "noblerone"]
[Result "1-0"]
[WhiteElo "2295"]
[BlackElo "2473"]
[TimeControl "180+1"]
[EndTime "9:53:09 PDT"]
[Termination "Barbix1 won by checkmate"]

1. d4 {[%clk 0:03:00.9]} 1... d5 {[%clk 0:02:53.6]} 2. c4 {[%clk 0:02:58.4]}
2... c6 {[%clk 0:02:53.7]} 3. cxd5 {[%clk 0:02:57.9]} 3... cxd5 {[%clk
0:02:53.7]} 4. Nc3 {[%clk 0:02:57.9]} 4... Nf6 {[%clk 0:02:54.1]} 5. Bf4 {[%clk
0:02:53.8]} 5... a6 {[%clk 0:02:53.6]} 6. e3 {[%clk 0:02:46.9]} 6... Nc6 {[%clk
0:02:53.8]} 7. Be2 {[%clk 0:02:32]} 7... Bf5 {[%clk 0:02:53]} 8. Nf3 {[%clk
0:02:12]} 8... e6 {[%clk 0:02:52.6]} 9. Qb3 {[%clk 0:02:12.1]} 9... Ra7 {[%clk
0:02:47.8]} 10. O-O {[%clk 0:02:04.4]} 10... Bd6 {[%clk 0:02:44.4]} 11. Bxd6
{[%clk 0:01:59.4]} 11... Qxd6 {[%clk 0:02:45.3]} 12. Na4 {[%clk 0:01:45.2]}
12... O-O {[%clk 0:02:44.6]} 13. Rfc1 {[%clk 0:01:43.4]} 13... Nd7 {[%clk
0:02:41.6]} 14. Nc5 {[%clk 0:01:18.5]} 14... Nxc5 {[%clk 0:02:33.4]} 15. Rxc5
{[%clk 0:01:13.9]} 15... b6 {[%clk 0:02:15.8]} 16. Qxb6 {[%clk 0:01:06.5]} 16...
Rc7 {[%clk 0:01:24.7]} 17. Rac1 {[%clk 0:01:02.8]} 17... Rb8 {[%clk 0:01:19.1]}
18. Qxa6 {[%clk 0:00:54.5]} 18... Rbc8 {[%clk 0:00:42.2]} 19. Ne5 {[%clk
0:00:43.5]} 19... f6 {[%clk 0:00:42.6]} 20. Nxc6 {[%clk 0:00:37.9]} 20... Kh8
{[%clk 0:00:42.9]} 21. h3 {[%clk 0:00:35.5]} 21... h6 {[%clk 0:00:39.2]} 22. Na7
{[%clk 0:00:21.7]} 22... Qxa6 {[%clk 0:00:35.8]} 23. Bxa6 {[%clk 0:00:22.2]}
23... Rxc5 {[%clk 0:00:34.4]} 24. Rxc5 {[%clk 0:00:22.8]} 24... Ra8 {[%clk
0:00:35.3]} 25. Rc8+ {[%clk 0:00:22.8]} 25... Rxc8 {[%clk 0:00:34.4]} 26. Bxc8
{[%clk 0:00:23.4]} 26... Kg8 {[%clk 0:00:33.9]} 27. g4 {[%clk 0:00:21.1]} 27...
Bb1 {[%clk 0:00:32.4]} 28. Bxe6+ {[%clk 0:00:20.7]} 28... Kf8 {[%clk 0:00:33.3]}
29. Bxd5 {[%clk 0:00:21.6]} 29... Ke7 {[%clk 0:00:33.6]} 30. Bb3 {[%clk
0:00:21.1]} 30... Kd6 {[%clk 0:00:33.7]} 31. Nb5+ {[%clk 0:00:20.6]} 31... Kc6
{[%clk 0:00:34]} 32. Nc3 {[%clk 0:00:21.2]} 32... Bd3 {[%clk 0:00:34.1]} 33. f3
{[%clk 0:00:21.2]} 33... Kb6 {[%clk 0:00:34.2]} 34. Kf2 {[%clk 0:00:21.8]} 34...
Ka5 {[%clk 0:00:34.7]} 35. e4 {[%clk 0:00:22.4]} 35... Kb4 {[%clk 0:00:35]} 36.
Ke3 {[%clk 0:00:23]} 36... Bf1 {[%clk 0:00:34.5]} 37. Ne2 {[%clk 0:00:22.3]}
37... Bxh3 {[%clk 0:00:34]} 38. Kf2 {[%clk 0:00:20.8]} 38... h5 {[%clk
0:00:33.8]} 39. Kg3 {[%clk 0:00:20.3]} 39... hxg4 {[%clk 0:00:33]} 40. fxg4
{[%clk 0:00:21.2]} 40... Bf1 {[%clk 0:00:33.9]} 41. Nf4 {[%clk 0:00:21]} 41...
Kb5 {[%clk 0:00:27.2]} 42. Nh5 {[%clk 0:00:20.7]} 42... g5 {[%clk 0:00:26.8]}
43. Nxf6 {[%clk 0:00:20.6]} 43... Bd3 {[%clk 0:00:27.2]} 44. Kf3 {[%clk
0:00:20.1]} 44... Kc6 {[%clk 0:00:27.5]} 45. Nh7 {[%clk 0:00:20.2]} 45... Kd6
{[%clk 0:00:28.1]} 46. Nxg5 {[%clk 0:00:20.8]} 46... Bb1 {[%clk 0:00:28.4]} 47.
Ke3 {[%clk 0:00:21.4]} 47... Ke7 {[%clk 0:00:28.7]} 48. Nf3 {[%clk 0:00:21.6]}
48... Kf6 {[%clk 0:00:29]} 49. Ne5 {[%clk 0:00:21.9]} 49... Kg5 {[%clk
0:00:29.1]} 50. Bd5 {[%clk 0:00:22.6]} 50... Bc2 {[%clk 0:00:28.2]} 51. a4
{[%clk 0:00:23.1]} 51... Bxa4 {[%clk 0:00:27.6]} 52. b4 {[%clk 0:00:23.8]} 52...
Bb5 {[%clk 0:00:27.8]} 53. Bc6 {[%clk 0:00:23.8]} 53... Bf1 {[%clk 0:00:27.1]}
54. b5 {[%clk 0:00:22.7]} 54... Kf6 {[%clk 0:00:25.5]} 55. b6 {[%clk 0:00:22.9]}
55... Ba6 {[%clk 0:00:26.4]} 56. b7 {[%clk 0:00:23.1]} 56... Bxb7 {[%clk
0:00:27.3]} 57. Bxb7 {[%clk 0:00:23.7]} 57... Ke7 {[%clk 0:00:27.9]} 58. Bd5
{[%clk 0:00:24]} 58... Kd6 {[%clk 0:00:28.8]} 59. g5 {[%clk 0:00:24]} 59... Ke7
{[%clk 0:00:29.7]} 60. g6 {[%clk 0:00:24.4]} 60... Kf6 {[%clk 0:00:30.6]} 61.
Kf4 {[%clk 0:00:23.8]} 61... Kg7 {[%clk 0:00:30.6]} 62. Kg5 {[%clk 0:00:24.3]}
62... Kh8 {[%clk 0:00:31]} 63. Ng4 {[%clk 0:00:21.5]} 63... Kg7 {[%clk
0:00:31.9]} 64. Ne3 {[%clk 0:00:21.6]} 64... Kh8 {[%clk 0:00:32]} 65. e5 {[%clk
0:00:21]} 65... Kg7 {[%clk 0:00:32.9]} 66. Nf5+ {[%clk 0:00:20.9]} 66... Kh8
{[%clk 0:00:32.4]} 67. g7+ {[%clk 0:00:17.7]} 67... Kh7 {[%clk 0:00:33.3]} 68.
g8=Q# {[%clk 0:00:17.2]} 1-0

[Event "Early-Titled-Tuesday-Blitz-May-07-2024"]
[Site "Chess.com"]
[Date "2024.05.07"]
[Round "9"]
[White "Acva-Alenok"]
[Black "PawnEatingZombie"]
[Result "1-0"]
[WhiteElo "2349"]
[BlackElo "2224"]
[TimeControl "180+1"]
[EndTime "9:53:10 PDT"]
[Termination "Acva-Alenok won on time"]

1. d4 {[%clk 0:03:00.9]} 1... Nf6 {[%clk 0:02:55.4]} 2. c4 {[%clk 0:02:58.4]}
2... g6 {[%clk 0:02:54.8]} 3. g3 {[%clk 0:02:56.1]} 3... Bg7 {[%clk 0:02:54.8]}
4. Bg2 {[%clk 0:02:54.6]} 4... O-O {[%clk 0:02:54.8]} 5. Nf3 {[%clk 0:02:52.6]}
5... d6 {[%clk 0:02:54.3]} 6. O-O {[%clk 0:02:52.9]} 6... Nc6 {[%clk 0:02:53.3]}
7. Nc3 {[%clk 0:02:53.2]} 7... e5 {[%clk 0:02:52.4]} 8. d5 {[%clk 0:02:51.4]}
8... Nb8 {[%clk 0:02:49.3]} 9. e4 {[%clk 0:02:48.1]} 9... a5 {[%clk 0:02:49.2]}
10. Ne1 {[%clk 0:02:47.1]} 10... Na6 {[%clk 0:02:46.7]} 11. Nd3 {[%clk
0:02:47.5]} 11... Nd7 {[%clk 0:02:38.1]} 12. Be3 {[%clk 0:02:46]} 12... f5
{[%clk 0:02:33]} 13. f4 {[%clk 0:02:40.1]} 13... exf4 {[%clk 0:02:29.9]} 14.
Nxf4 {[%clk 0:02:30.7]} 14... Ndc5 {[%clk 0:02:24.7]} 15. Bd4 {[%clk 0:02:08.8]}
15... Bxd4+ {[%clk 0:02:07.9]} 16. Qxd4 {[%clk 0:02:09.7]} 16... Qf6 {[%clk
0:02:03.8]} 17. Qd2 {[%clk 0:01:28.6]} 17... Bd7 {[%clk 0:01:53.7]} 18. exf5
{[%clk 0:01:25.5]} 18... Bxf5 {[%clk 0:01:51.9]} 19. h3 {[%clk 0:01:20.1]} 19...
Qg7 {[%clk 0:01:45.5]} 20. Ne6 {[%clk 0:00:54.2]} 20... Nxe6 {[%clk 0:01:35.3]}
21. dxe6 {[%clk 0:00:54]} 21... Nc5 {[%clk 0:01:19.8]} 22. Bd5 {[%clk
0:00:20.3]} 22... Kh8 {[%clk 0:01:19.7]} 23. Rae1 {[%clk 0:00:17.3]} 23... Bxh3
{[%clk 0:01:06.8]} 24. Rxf8+ {[%clk 0:00:16.1]} 24... Rxf8 {[%clk 0:01:07.7]}
25. e7 {[%clk 0:00:15.4]} 25... Re8 {[%clk 0:01:05.5]} 26. Qg5 {[%clk
0:00:09.5]} 26... Qd4+ {[%clk 0:00:35.8]} 27. Re3 {[%clk 0:00:08.8]} 27... Nd7
{[%clk 0:00:11.8]} 28. Kh2 {[%clk 0:00:07.8]} 28... Bf5 {[%clk 0:00:11.1]} 29.
Ne2 {[%clk 0:00:07]} 29... Qxb2 {[%clk 0:00:08.8]} 30. Bxb7 {[%clk 0:00:05.5]}
30... Kg7 {[%clk 0:00:03.9]} 31. Bc6 {[%clk 0:00:04.8]} 31... h6 {[%clk
0:00:04.3]} 32. Qf4 {[%clk 0:00:04.1]} 32... Ne5 {[%clk 0:00:01.7]} 33. Bxe8
{[%clk 0:00:03.7]} 33... Ng4+ {[%clk 0:00:02.6]} 34. Kg2 {[%clk 0:00:02.4]}
34... Nxe3+ {[%clk 0:00:01.6]} 35. Qxe3 {[%clk 0:00:03.3]} 35... Bd3 {[%clk
0:00:01.5]} 36. Bb5 {[%clk 0:00:02.7]} 36... Qxe2+ {[%clk 0:00:00.5]} 37. Qxe2
{[%clk 0:00:02.6]} 37... Bxe2 {[%clk 0:00:01.4]} 38. e8=Q {[%clk 0:00:03]} 38...
h5 {[%clk 0:00:02.1]} 39. Qe3 {[%clk 0:00:03.6]} 39... Bg4 {[%clk 0:00:01.4]}
40. Qd4+ {[%clk 0:00:04.5]} 40... Kh6 {[%clk 0:00:01.8]} 41. Qd2+ {[%clk
0:00:04.5]} 41... Kg7 {[%clk 0:00:02]} 42. Qe1 {[%clk 0:00:05.4]} 42... Kh6
{[%clk 0:00:01.9]} 43. Qf2 {[%clk 0:00:06.3]} 43... Kg7 {[%clk 0:00:02.3]} 44.
Qd4+ {[%clk 0:00:06.8]} 44... Kh6 {[%clk 0:00:03.2]} 45. Bc6 {[%clk 0:00:06.8]}
45... Kh7 {[%clk 0:00:04.1]} 46. Be4 {[%clk 0:00:06.8]} 46... Kh6 {[%clk
0:00:05]} 47. Qf6 {[%clk 0:00:06.9]} 47... Bf5 {[%clk 0:00:04.8]} 48. Bxf5
{[%clk 0:00:06.9]} 1-0